bitfinex/quotes_ETHUSD_20241024
["timestamp","ask_amount","ask_price","bid_price","bid_amount"]
[1729782054309,3.95923,2525.8,2525.5,0.7591]
[1729782054747,3.9593,2525.7,2525.5,0.7591]
[1729782054945,3.95898,2525.9,2525.5,0.7591]
[1729782055150,3.95886,2526.0,2525.5,0.7591]
[1729782055713,3.95924,2525.8,2525.5,0.7591]
[1729782055946,7.91848,2525.8,2525.5,0.7591]
[1729782056149,3.9593,2525.7,2525.5,0.7591]
[1729782056324,3.95962,2525.5,2525.2,0.8146]
[1729782056524,0.791848,2525.8,2525.2,0.8146]
[1729782056846,3.95976,2525.4,2524.8,0.8146]
[1729782057055,3.96038,2525.1,2524.3,0.8146]
[1729782057257,3.96038,2525.1,2524.3,4.77607]
[1729782057469,3.96047,2525.0,2524.4,0.07921516]
[1729782057817,3.96038,2525.1,2524.3,1.80905459]
[1729782058017,3.9605,2525.0,2524.3,1.80905459]
[1729782058297,7.92198,2524.7,2524.3,0.8146]
[1729782058427,3.96097,2524.7,2524.3,0.8146]
[1729782058628,3.96103,2524.6,2524.3,0.8146]
[1729782058956,3.96102,2524.6,2523.8,13.16504771]
[1729782059259,3.96118,2524.5,2523.9,4.84861709]
[1729782059459,3.96102,2524.6,2524.0,1.80136648]
[1729782059627,3.96135,2524.4,2524.1,0.0792271]
[1729782059822,3.96135,2524.4,2523.9,0.8073]
[1729782060022,3.96162,2524.3,2523.9,0.8073]
[1729782060329,3.96145,2524.4,2523.7,0.07922952]
[1729782060522,3.96181,2524.1,2523.6,0.8106]
[1729782060741,3.96206,2524.0,2523.6,0.8106]
[1729782060937,3.96222,2523.9,2523.6,0.8106]
[1729782061140,3.96269,2523.6,2523.3,0.7945]
[1729782061476,3.96307,2523.3,2523.0,0.7945]
[1729782061620,3.96336,2523.2,2523.0,0.7945]
[1729782061825,0.8109,2524.2,2522.7,0.7945]
[1729782061826,3.96364,2523.0,2522.7,0.7945]
[1729782062066,3.96364,2523.0,2522.7,0.7445]
[1729782062357,3.96384,2522.8,2522.3,5.16847591]
[1729782062561,3.96364,2523.0,2522.4,0.0792768]
[1729782062770,3.96328,2523.2,2522.4,4.0437268]
[1729782062933,0.7667,2523.8,2522.6,9.13252591]
[1729782063138,3.96295,2523.4,2522.9,5.16847591]
[1729782063435,3.96165,2524.2,2523.2,9.13155591]
[1729782063656,3.96176,2524.2,2523.5,0.55]
[1729782063957,3.96176,2524.2,2523.7,0.55]
[1729782064452,3.96143,2524.4,2523.8,0.07923661]
[1729782064655,3.96143,2524.4,2523.9,0.55]
[1729782064854,3.96183,2524.1,2523.6,3.55]
[1729782065052,7.92373,2524.1,2523.8,0.55]
[1729782065260,7.92373,2524.1,2523.6,5.60602959]
[1729782065261,3.96183,2524.1,2523.6,5.60602959]
[1729782065934,3.96183,2524.1,2523.7,0.07924072]
[1729782066137,3.96183,2524.1,2523.6,5.60602959]
[1729782066350,3.96214,2523.9,2523.6,5.60602959]
[1729782066554,3.96228,2523.8,2523.4,0.55]
[1729782066757,3.96268,2523.6,2523.3,0.7848]
[1729782066928,3.96283,2523.5,2522.9,0.7848]
[1729782067133,7.92509,2523.7,2523.0,0.55410405]
[1729782067333,3.96251,2523.7,2523.0,0.55411092]
[1729782067533,3.96279,2523.5,2523.0,0.55411092]
[1729782067764,7.92507,2523.7,2523.0,4.51754092]
[1729782067963,3.96251,2523.7,2523.1,3.96334]
[1729782068268,3.96251,2523.7,2523.2,0.07925542]
[1729782068447,3.96251,2523.7,2523.1,0.07925581]
[1729782068655,3.9622,2523.9,2523.2,0.55]
[1729782068827,3.96203,2524.0,2523.4,0.55]
[1729782069031,3.96215,2523.9,2523.4,4.5128]
[1729782069374,3.96185,2524.1,2523.5,4.74823]
[1729782069532,3.96185,2524.1,2523.5,4.82747576]
[1729782069732,7.92374,2524.1,2523.5,5.76150334]
[1729782070045,0.7534,2524.4,2523.6,4.51257]
[1729782070046,3.96159,2524.3,2523.6,4.51257]
[1729782070370,3.96198,2524.0,2523.6,0.55]
[1729782070574,3.96176,2524.2,2523.6,4.51256]
[1729782070747,7.92356,2524.2,2523.6,4.59180105]
[1729782070944,3.96176,2524.2,2523.6,5.53997386]
[1729782071142,3.96182,2524.1,2523.6,5.53997386]
[1729782071474,3.96176,2524.2,2523.6,9.58172491]
[1729782071645,3.96176,2524.2,2523.7,0.0792383]
[1729782071842,3.96176,2524.2,2523.7,3.96241]
[1729782072072,3.96176,2524.2,2523.8,0.6292373]
[1729782072230,3.96078,2524.8,2524.3,0.78]
[1729782072437,3.96078,2524.8,2524.4,5.16847591]
[1729782072637,3.9605,2525.0,2524.5,0.62922022]
[1729782072830,3.96049,2525.0,2524.5,0.62922022]
[1729782073051,3.96018,2525.2,2524.6,3.96102]
[1729782073256,5.16847591,2525.8,2524.9,0.55]
[1729782073257,0.7581,2525.8,2524.9,0.55]
[1729782073458,3.96039,2525.0,2524.7,0.55]
[1729782073662,3.96057,2524.9,2524.6,0.55]
[1729782073934,3.9608,2524.8,2524.6,0.55]
[1729782074162,7.92072,2525.1,2524.4,4.51124]
[1729782074363,3.96034,2525.1,2524.5,0.529124]
[1729782074665,3.96034,2525.1,2524.6,0.55]
[1729782074666,3.96048,2525.0,2524.6,0.55]
[1729782074834,3.96048,2525.0,2524.5,0.55]
[1729782075030,3.96048,2525.0,2524.5,4.51113]
[1729782075236,3.96034,2525.1,2524.6,4.04020101]
[1729782075571,3.96044,2525.0,2524.5,4.51115]
[1729782075746,3.96034,2525.1,2524.6,4.04020101]
[1729782076155,7.9207,2525.1,2524.6,4.04020101]
[1729782076468,3.96034,2525.1,2524.6,4.04020101]
[1729782076770,3.96033,2525.1,2524.6,0.07921102]
[1729782076973,3.96033,2525.1,2524.5,5.95312459]
[1729782077141,3.96043,2525.0,2524.5,5.95312459]
[1729782078473,3.96043,2525.0,2524.6,0.07921106]
[1729782078639,7.92068,2525.1,2524.5,5.95312459]
[1729782078839,3.96033,2525.1,2524.5,5.95312459]
[1729782079141,3.96033,2525.1,2524.6,3.961]
[1729782079450,3.96032,2525.1,2524.6,4.04021107]
[1729782079660,3.96056,2524.9,2524.5,1.99208459]
[1729782079860,3.96056,2524.9,2524.6,0.07921114]
[1729782080063,3.96032,2525.1,2524.6,0.07921114]
[1729782080252,3.96047,2525.0,2524.6,0.07921114]
[1729782080466,3.96047,2525.0,2524.5,5.95324459]
[1729782080643,3.96047,2525.0,2524.6,0.0792111]
[1729782081178,3.95958,2525.6,2525.0,0.55]
[1729782081382,3.95921,2525.8,2525.2,4.51005]
[1729782081583,3.95938,2525.7,2525.2,0.55]
[1729782081743,8.314748,2525.7,2525.2,0.55]
[1729782081939,3.95904,2525.9,2525.4,4.50976]
[1729782082166,3.95915,2525.8,2525.5,0.07918531]
[1729782082481,3.95846,2526.3,2525.9,0.7787]
[1729782082692,3.95869,2526.1,2525.9,0.7787]
[1729782083149,3.95882,2526.0,2525.6,0.7787]
[1729782083387,3.95929,2525.7,2525.6,0.7787]
[1729782083654,3.95914,2525.8,2525.6,0.7787]
[1729782084367,3.95899,2525.9,2525.6,0.7787]
[1729782084563,3.95929,2525.7,2525.3,1.3054]
[1729782084978,3.95946,2525.6,2525.3,1.3054]
[1729782085288,7.91906,2525.6,2525.3,0.7554]
[1729782085467,3.95931,2525.7,2525.3,0.7554]
[1729782085643,0.83540559,2525.6,2525.3,0.7554]
[1729782087491,4.750201,2526.2,2525.6,4.50934]
[1729782087673,3.95876,2526.1,2525.7,0.07917184]
[1729782087979,4.750201,2526.2,2525.7,0.07917184]
[1729782088346,3.95891,2526.0,2525.6,0.55]
[1729782088547,7.91783,2526.0,2525.5,0.55]
[1729782088762,0.8709491,2526.0,2525.4,0.55]
[1729782089053,3.95945,2525.6,2525.4,0.55]
[1729782089363,3.95919,2525.8,2525.4,0.55]
[1729782090249,3.95919,2525.8,2525.4,0.62918589]
[1729782090486,3.95919,2525.8,2525.4,0.55]
[1729782090655,3.95919,2525.8,2525.4,0.62918598]
[1729782090984,7.91843,2525.8,2525.4,0.62918598]
[1729782091181,7.91843,2525.8,2525.3,3.7554]
[1729782091182,3.95954,2525.6,2525.3,0.7554]
[1729782091388,3.95976,2525.4,2525.0,0.55]
[1729782091944,3.95976,2525.4,2524.9,0.7569]
[1729782092177,3.95995,2525.3,2525.0,0.07919659]
[1729782092382,3.96023,2525.1,2524.9,0.7569]
[1729782092687,3.96047,2525.0,2524.5,0.8242]
[1729782092982,3.96047,2525.0,2524.5,4.78535]
[1729782093181,3.96035,2525.1,2524.5,2.21570459]
[1729782093484,3.96035,2525.1,2524.5,6.17685459]
[1729782093983,3.96032,2525.1,2524.6,3.07920823]
[1729782094705,7.92066,2525.1,2524.7,0.55]
[1729782094847,3.96073,2524.8,2524.5,0.8242]
[1729782095961,3.96093,2524.7,2524.2,0.8131]
[1729782096148,3.96073,2524.8,2524.3,3.0792191]
[1729782096493,3.96088,2524.7,2524.3,3.0792191]
[1729782096846,3.9612,2524.5,2524.3,0.0792191]
[1729782097083,3.96124,2524.5,2524.2,0.8131]
[1729782098548,3.96142,2524.4,2524.2,0.8131]
[1729782098755,3.96124,2524.5,2524.2,0.8131]
[1729782099449,3.96149,2524.3,2524.2,0.8131]
[1729782099650,3.96196,2524.0,2523.9,0.7569]
[1729782099846,3.96196,2524.0,2523.5,0.7569]
[1729782100089,3.96212,2523.9,2523.5,0.7569]
[1729782100795,3.96196,2524.0,2523.5,0.7569]
[1729782101086,3.96244,2523.7,2523.2,0.8209]
[1729782101288,3.96244,2523.7,2523.3,0.58312313]
[1729782101783,0.8145,2524.0,2523.2,0.90015453]
[1729782101784,3.96263,2523.6,2523.2,0.90015453]
[1729782101984,3.96212,2523.9,2522.7,4.71974]
[1729782101985,3.96275,2523.5,2522.7,4.71974]
[1729782102285,3.96275,2523.5,2522.8,3.96381]
[1729782102586,3.96275,2523.5,2522.9,0.07926147]
[1729782102784,3.96292,2523.4,2522.9,0.95554262]
[1729782102992,3.96275,2523.5,2522.9,4.91914262]
[1729782103151,3.96252,2523.7,2523.1,5.30777]
[1729782103473,0.8145,2524.0,2523.1,5.30777]
[1729782103474,3.9627,2523.6,2523.3,0.55]
[1729782103646,3.96283,2523.5,2523.2,0.55]
[1729782103846,3.96299,2523.4,2523.1,0.7944]
[1729782104286,3.96309,2523.3,2522.8,4.73356]
[1729782104485,3.96314,2523.3,2522.9,0.473356]
[1729782104697,7.92629,2523.3,2522.8,0.7698]
[1729782104887,3.96323,2523.2,2522.8,0.7698]
[1729782105190,3.96314,2523.3,2522.8,0.84906781]
[1729782105354,3.96345,2523.1,2522.8,0.7698]
[1729782105550,3.96331,2523.2,2522.8,0.7698]
[1729782105759,3.96331,2523.2,2522.9,0.473378]
[1729782106581,3.96338,2523.1,2522.8,0.84906783]
[1729782106810,3.96338,2523.1,2522.8,0.7698]
[1729782107318,3.96361,2523.0,2522.6,0.55]
[1729782107627,3.96338,2523.1,2522.5,7.821255]
[1729782107791,3.96338,2523.1,2522.5,3.7777]
[1729782107999,3.96378,2522.9,2522.5,0.7777]
[1729782108198,3.96378,2522.9,2522.1,0.8075]
[1729782108199,3.96445,2522.5,2522.1,0.8075]
[1729782109408,3.96408,2522.7,2522.2,0.55]
[1729782109744,3.96417,2522.6,2522.2,0.62928737]
[1729782109892,3.96417,2522.6,2522.2,1.16947411]
[1729782110091,3.96434,2522.5,2522.2,1.09018674]
[1729782110427,3.96408,2522.7,2522.2,0.55]
[1729782110428,3.96416,2522.6,2522.2,0.55]
[1729782110790,3.96435,2522.5,2522.2,0.62928739]
[1729782111240,3.96416,2522.6,2522.2,0.62928739]
[1729782111241,3.96429,2522.6,2522.2,0.62928739]
[1729782111443,3.96429,2522.6,2522.2,0.62928741]
[1729782112147,3.96424,2522.6,2522.2,0.55]
[1729782112506,4.360664,2522.6,2522.2,0.55]
[1729782112707,4.360664,2522.6,2522.0,0.55]
[1729782112708,3.96432,2522.5,2522.0,0.55]
[1729782112921,3.96465,2522.3,2521.9,3.8284]
[1729782113351,0.396424,2522.6,2521.9,0.8284]
[1729782113557,3.9645,2522.4,2521.9,0.8284]
[1729782114067,3.96426,2522.6,2522.0,0.55]
[1729782114367,3.96426,2522.6,2522.0,4.5151]
[1729782114368,3.9644,2522.5,2522.0,4.5151]
[1729782114514,3.9644,2522.5,2522.0,0.55]
[1729782114863,3.9644,2522.5,2522.0,5.86630659]
[1729782115373,3.9644,2522.5,2522.2,0.55]
[1729782115514,3.96425,2522.6,2522.2,0.55]
[1729782115723,3.96401,2522.7,2522.2,0.55]
[1729782115959,3.96397,2522.8,2522.4,0.55]
[1729782116262,7.9263,2523.3,2522.6,0.55]
[1729782116560,3.96363,2523.0,2522.6,0.55]
[1729782116729,3.96376,2522.9,2522.6,0.55]
[1729782117056,3.96376,2522.9,2522.5,0.8246]
[1729782118217,3.96363,2523.0,2522.5,0.8246]
[1729782118416,3.96322,2523.2,2522.5,0.8246]
[1729782118663,3.96379,2522.9,2522.5,0.8246]
[1729782119318,3.96386,2522.8,2522.5,0.8246]
[1729782119853,3.96386,2522.8,2522.3,0.55]
[1729782120260,3.9644,2522.5,2522.2,0.7505]
[1729782120460,7.92979,2522.2,2521.9,0.7574]
[1729782120618,3.96489,2522.2,2521.9,0.7574]
[1729782121047,3.96458,2522.4,2521.9,0.7574]
[1729782121346,3.96465,2522.3,2521.9,0.7574]
[1729782121555,3.96502,2522.1,2521.9,0.7574]
[1729782121763,3.96502,2522.1,2521.6,4.79382]
[1729782121962,3.96502,2522.1,2521.7,0.479382]
[1729782123122,3.96476,2522.3,2521.6,0.8282]
[1729782123123,3.96517,2522.0,2521.6,0.8282]
[1729782123447,3.96558,2521.7,2521.4,0.76]
[1729782123649,3.96543,2521.8,2521.4,0.76]
[1729782123967,3.96543,2521.8,2521.4,1.629237]
[1729782124337,3.96543,2521.8,2521.4,4.629237]
[1729782124865,3.96543,2521.8,2521.4,1.629237]
[1729782125234,3.96588,2521.6,2521.4,0.76]
[1729782125472,3.96588,2521.6,2521.1,4.74675]
[1729782125971,4.75132,2521.8,2521.1,4.74675]
[1729782126127,3.9658,2521.6,2521.2,0.07931912]
[1729782126327,3.96447679,2521.6,2521.1,4.74666]
[1729782126526,3.96447679,2521.6,2521.2,0.474666]
[1729782127790,3.96635,2521.3,2520.8,0.7591]
[1729782128068,3.96606,2521.4,2520.9,3.96682]
[1729782128223,3.96596,2521.5,2520.8,0.7591]
[1729782128224,3.96643,2521.2,2520.8,0.7591]
[1729782128425,3.96626,2521.3,2520.8,0.7591]
[1729782128837,3.96626,2521.3,2520.8,0.8384311]
[1729782129061,3.96626,2521.3,2520.8,4.8053511]
[1729782129565,3.96598,2521.5,2520.9,3.96682]
[1729782129859,3.96598,2521.5,2521.0,4.44707511]
[1729782130076,3.96598,2521.5,2521.0,0.55985614]
[1729782130077,7.93202,2521.5,2521.0,0.55985614]
[1729782130223,3.96598,2521.5,2521.1,0.55]
[1729782130425,3.96547,2521.8,2521.3,0.8154]
[1729782130649,0.7662,2522.0,2521.3,0.8154]
[1729782130650,3.96582,2521.6,2521.3,0.8154]
[1729782130850,3.96556,2521.8,2521.3,0.8154]
[1729782131069,0.7662,2522.0,2521.5,3.96588]
[1729782131070,3.96516,2522.0,2521.5,3.96588]
[1729782131260,3.96476,2522.3,2521.6,0.62931247]
[1729782131449,3.96489,2522.2,2521.6,4.51572]
[1729782131650,3.96489,2522.2,2521.7,3.96556]
[1729782131852,3.96463,2522.3,2521.7,8.382676]
[1729782132245,3.96463,2522.3,2521.8,0.7634]
[1729782132461,3.96463,2522.3,2521.8,4.7288]
[1729782132682,3.96451,2522.4,2521.9,4.5152]
[1729782132984,3.96442,2522.5,2522.1,0.55]
[1729782133279,4.72112,2522.7,2522.2,4.42418687]
[1729782133280,3.96412,2522.7,2522.2,4.42418687]
[1729782133478,3.96376,2522.9,2522.3,0.55]
[1729782133677,3.96376,2522.9,2522.5,0.55]
[1729782133887,3.96385,2522.8,2522.5,0.55]
[1729782134172,3.96409,2522.7,2522.3,0.7725]
[1729782134376,3.96409,2522.7,2522.3,1.942716]
[1729782134953,3.96385,2522.8,2522.3,1.942716]
[1729782135149,3.96385,2522.8,2522.3,5.98661996]
[1729782135381,3.96403,2522.7,2522.3,2.02199996]
[1729782135542,7.92727,2523.0,2522.4,0.55]
[1729782135736,3.96363,2523.0,2522.6,0.55]
[1729782136131,3.96369,2522.9,2522.6,0.55]
[1729782136985,3.96337,2523.1,2522.6,0.55]
[1729782137189,3.96362,2523.0,2522.6,0.55]
[1729782137343,3.96362,2523.0,2522.2,3.0]
[1729782137344,3.96458,2522.4,2522.0,3.0]
[1729782137674,3.96424,2522.6,2522.0,4.736545]
[1729782137874,3.96413,2522.7,2522.1,4.04410068]
[1729782138060,3.9644,2522.5,2522.1,0.07929068]
[1729782138267,3.96454,2522.4,2522.0,0.771525]
[1729782138445,3.96454,2522.4,2521.8,0.75]
[1729782138446,3.96465,2522.3,2521.8,0.75]
[1729782138639,3.9644,2522.5,2521.9,4.56125628]
[1729782139066,3.96451,2522.4,2521.9,0.59599628]
[1729782139382,3.9644,2522.5,2522.0,3.96509]
[1729782139584,3.96411,2522.7,2522.1,0.07929092]
[1729782139742,3.96411,2522.7,2522.3,0.7987]
[1729782140159,3.9634,2523.1,2522.3,0.7987]
[1729782140160,3.96344,2523.1,2522.5,3.96431]
[1729782140392,3.96344,2523.1,2522.6,0.55]
[1729782140893,3.96344,2523.1,2522.7,0.07927395]
[1729782141256,3.96287,2523.5,2522.9,0.7798]
[1729782141482,3.96287,2523.5,2522.9,0.85906958]
[1729782141483,3.96291,2523.4,2522.9,0.85906958]
[1729782141796,3.96307,2523.3,2522.9,0.85906958]
[1729782141970,3.96292,2523.4,2522.9,1.69634954]
[1729782142799,0.7711,2523.9,2522.9,1.69634954]
[1729782142984,3.9627,2523.6,2523.0,4.51349]
[1729782143157,3.96165,2524.2,2523.6,3.96257]
[1729782143357,3.96165,2524.2,2523.7,4.51243]
[1729782143633,3.96111,2524.6,2523.9,0.815]
[1729782143799,3.96124,2524.5,2524.0,0.55]
[1729782143954,3.96124,2524.5,2524.0,0.62923158]
[1729782144390,3.9615,2524.3,2524.0,0.55]
[1729782144697,3.96165,2524.2,2524.0,0.55]
[1729782144993,3.96149,2524.3,2524.0,0.55]
[1729782145498,3.96169,2524.2,2524.0,0.55]
[1729782145854,3.96169,2524.2,2523.5,0.7637]
[1729782145855,3.96173,2524.2,2523.5,0.7637]
[1729782146055,3.96144,2524.4,2523.8,0.55]
[1729782146298,3.96149,2524.3,2523.8,0.55]
[1729782146470,3.96108,2524.6,2524.0,3.96192]
[1729782146656,0.396072,2524.7,2524.1,0.62922653]
[1729782146657,3.96087,2524.7,2524.1,0.62922653]
[1729782146859,3.96058,2524.9,2524.3,0.55]
[1729782147175,3.96032,2525.1,2524.5,4.51117]
[1729782147395,3.96013,2525.2,2524.8,0.55]
[1729782147594,3.95984,2525.4,2524.8,4.58989647]
[1729782147927,3.96005,2525.3,2524.8,0.55]
[1729782148095,3.95984,2525.4,2524.8,0.55]
[1729782148414,3.95994,2525.3,2524.8,4.5107]
[1729782148792,3.95984,2525.4,2525.0,0.55]
[1729782149141,3.95925,2525.8,2525.3,0.7791]
[1729782149424,0.7846,2526.3,2525.3,0.7791]
[1729782149425,0.7846,2526.3,2525.4,0.55]
[1729782149597,3.95925,2525.8,2525.5,0.07918401]
[1729782149922,3.95898,2525.9,2525.4,0.55]
[1729782150287,3.95957,2525.6,2525.0,0.8264]
[1729782150508,0.395898,2525.9,2525.0,0.90559835]
[1729782150709,3.95885,2526.0,2525.0,0.8264]
[1729782150924,5.98837591,2525.9,2524.7,3.0]
[1729782151287,3.96047,2525.0,2524.6,0.7693]
[1729782151643,3.96064,2524.9,2524.6,0.7693]
[1729782151977,3.96047,2525.0,2524.6,0.7693]
[1729782152742,3.96056,2524.9,2524.6,0.7693]
[1729782153137,3.02,2525.8,2524.6,0.7693]
[1729782153138,3.96008,2525.2,2524.6,0.7693]
[1729782153338,3.96056,2524.9,2524.3,3.0]
[1729782153585,3.96132,2524.5,2524.1,0.8192]
[1729782153742,3.9607,2524.9,2524.2,4.04078792]
[1729782153942,3.9608,2524.8,2524.1,4.781]
[1729782154181,3.96096,2524.7,2524.1,4.781]
[1729782154546,4.753116,2524.7,2524.1,0.8192]
[1729782154752,3.96118,2524.5,2524.1,0.8192]
[1729782155182,0.792176,2524.7,2524.1,0.8192]
[1729782155382,3.96066,2524.9,2524.2,0.07922355]
[1729782155704,3.96089,2524.7,2524.2,0.07922355]
[1729782155891,3.96089,2524.7,2524.3,0.55]
[1729782155892,3.96104,2524.6,2524.3,0.55]
[1729782156211,3.96089,2524.7,2524.3,0.55]
[1729782156212,7.9219,2524.7,2524.3,0.55]
[1729782156665,3.96089,2524.7,2524.3,0.55]
[1729782156868,7.92186,2524.7,2524.3,0.55]
[1729782157096,3.96089,2524.7,2524.3,0.55]
[1729782157294,3.96102,2524.6,2524.2,0.62922359]
[1729782157503,0.471108,2525.1,2524.2,0.55]
[1729782157705,7.92284,2524.4,2524.1,0.8192]
[1729782157998,3.96165,2524.2,2524.1,0.8192]
[1729782158194,3.96165,2524.2,2523.6,13.16543771]
[1729782158195,3.96165,2524.2,2523.7,0.8225]
[1729782158400,3.96165,2524.2,2523.8,0.07923443]
[1729782158401,3.96188,2524.1,2523.8,0.07923443]
[1729782158611,3.96188,2524.1,2523.7,0.8225]
[1729782158790,3.96165,2524.2,2523.8,0.07923741]
[1729782159169,3.96145,2524.4,2523.8,4.93123833]
[1729782159664,3.96086,2524.7,2524.1,3.96179]
[1729782159871,3.961,2524.7,2524.3,1.3309]
[1729782160095,3.9612,2524.5,2524.3,0.7809]
[1729782160666,0.3471108,2525.0,2524.3,0.7809]
[1729782160667,3.96133,2524.4,2524.3,0.7809]
[1729782161005,3.96133,2524.4,2523.9,9.13045591]
[1729782161006,3.96133,2524.4,2523.9,1.3385]
[1729782161196,3.96133,2524.4,2524.0,0.07922681]
[1729782161368,3.96133,2524.4,2524.1,0.55]
[1729782161791,3.96134,2524.4,2524.0,0.55]
[1729782162068,3.96166,2524.2,2523.9,0.7885]
[1729782162270,3.96146,2524.4,2524.0,0.55]
[1729782162821,3.96112,2524.6,2524.0,1.16723095]
[1729782163329,3.96142,2524.4,2524.0,1.08799956]
[1729782163492,7.9229,2524.4,2524.0,0.55]
[1729782163815,3.9615,2524.3,2524.0,0.55]
[1729782164129,3.96142,2524.4,2523.6,0.7873]
[1729782164130,3.9622,2523.9,2523.6,0.7873]
[1729782164285,3.96206,2524.0,2523.6,0.7873]
[1729782164981,3.96212,2523.9,2523.6,0.7873]
[1729782165418,0.8304,2524.4,2523.6,0.7873]
[1729782165419,3.96235,2523.8,2523.6,0.7873]
[1729782165719,3.96149,2524.3,2523.6,0.7873]
[1729782165890,3.96211,2524.0,2523.6,0.7873]
[1729782166428,3.96183,2524.1,2523.6,0.7873]
[1729782166723,3.96151,2524.3,2523.7,4.59166198]
[1729782166900,3.96151,2524.3,2523.7,4.51242]
[1729782167226,3.96197,2524.0,2523.7,0.55]
[1729782167519,3.96181,2524.1,2523.7,0.55]
[1729782167723,3.96181,2524.1,2523.7,1.080003]
[1729782168219,3.9614,2524.4,2523.7,1.15924125]
[1729782168420,3.96182,2524.1,2523.7,1.15924125]
[1729782168578,3.96182,2524.1,2523.7,1.080003]
[1729782169317,3.96182,2524.1,2523.7,1.15924127]
[1729782169520,3.96167,2524.2,2523.7,1.15924127]
[1729782169678,3.96167,2524.2,2523.8,0.59091213]
[1729782170099,3.96188,2524.1,2523.8,0.59091213]
[1729782170298,3.96167,2524.2,2523.7,1.080003]
[1729782170521,3.96214,2523.9,2523.7,0.55]
[1729782170743,3.96227,2523.8,2523.6,0.7873]
[1729782171438,3.96204,2524.0,2523.6,0.7873]
[1729782172426,3.9622,2523.9,2523.6,0.7873]
[1729782172604,3.96204,2524.0,2523.6,0.7873]
[1729782173006,3.96216,2523.9,2523.6,0.7873]
[1729782173222,3.96204,2524.0,2523.6,0.7873]
[1729782173223,3.96228,2523.8,2523.6,0.7873]
[1729782173602,3.96204,2524.0,2523.6,0.7873]
[1729782173942,3.96214,2523.9,2523.6,0.7873]
[1729782174145,3.96243,2523.7,2523.6,0.7873]
[1729782174316,3.96243,2523.7,2523.3,1.3065]
[1729782174642,3.96222,2523.9,2523.3,2.529806]
[1729782175048,3.96165,2524.2,2523.3,1.3065]
[1729782175233,3.96266,2523.6,2523.3,0.7565]
[1729782175403,3.96275,2523.5,2523.3,0.7565]
[1729782176326,3.96222,2523.9,2523.3,0.7565]
[1729782176527,3.96243,2523.7,2523.3,0.7565]
[1729782176731,3.96196,2524.0,2523.5,0.55]
[1729782176951,3.9625,2523.7,2523.4,0.55]
[1729782177526,3.96228,2523.8,2523.4,0.55]
[1729782177730,3.9625,2523.7,2523.4,0.55]
[1729782178002,3.96228,2523.8,2523.4,0.55]
[1729782178550,3.96221,2523.9,2523.4,4.51284]
[1729782178708,3.96189,2524.1,2523.6,0.55]
[1729782178905,3.96214,2523.9,2523.6,0.55]
[1729782179947,7.92437,2523.9,2523.6,0.55]
[1729782180146,3.96236,2523.8,2523.4,0.55]
[1729782180347,3.96214,2523.9,2523.4,4.59205818]
[1729782180506,3.96214,2523.9,2523.5,0.93115182]
[1729782180846,3.96237,2523.8,2523.5,0.93115182]
[1729782181045,3.96251,2523.7,2523.4,0.55]
[1729782181344,3.96221,2523.9,2523.4,0.55]
[1729782181345,3.9622,2523.9,2523.4,0.55]
[1729782181552,3.96236,2523.8,2523.4,0.55]
[1729782181839,3.96243,2523.7,2523.4,0.55]
[1729782182046,4.77523,2523.9,2523.3,0.7565]
[1729782182248,3.96284,2523.5,2523.1,0.55]
[1729782182454,3.96268,2523.6,2523.1,4.59256793]
[1729782182609,3.96268,2523.6,2523.1,8.55585793]
[1729782182804,3.96244,2523.7,2523.2,4.04246489]
[1729782183003,3.96222,2523.9,2523.3,4.51299]
[1729782183207,3.96222,2523.9,2523.3,5.360533]
[1729782183405,3.96173,2524.2,2523.5,4.51265]
[1729782183632,3.96177,2524.2,2523.7,0.55]
[1729782183815,3.96155,2524.3,2523.7,0.55]
[1729782184037,3.96127,2524.5,2524.0,0.55]
[1729782184206,3.96114,2524.6,2524.0,5.11946037]
[1729782184409,3.9613,2524.5,2524.0,1.078341]
[1729782184612,3.96143,2524.4,2524.0,1.078341]
[1729782185653,3.96072,2524.8,2524.0,1.078341]
[1729782185654,3.96172,2524.2,2524.0,0.55]
[1729782186208,3.9618,2524.1,2523.9,0.7713]
[1729782186475,3.96167,2524.2,2523.5,0.8009]
[1729782186613,3.96239,2523.8,2523.5,0.8009]
[1729782186804,3.96238,2523.8,2523.5,0.8009]
[1729782187010,7.92481,2523.8,2523.5,0.8009]
[1729782187249,3.96238,2523.8,2523.5,0.8009]
[1729782187622,3.96189,2524.1,2523.6,3.96257]
[1729782187809,3.96189,2524.1,2523.7,0.476347]
[1729782188014,3.96204,2524.0,2523.7,0.476347]
[1729782188354,3.96212,2523.9,2523.7,0.55]
[1729782188551,7.92434,2523.9,2523.6,0.55]
[1729782188793,3.96196,2524.0,2523.5,0.8009]
[1729782188924,3.96196,2524.0,2523.3,0.847623]
[1729782188925,3.96262,2523.6,2523.3,0.8173]
[1729782189126,3.96253,2523.7,2523.3,0.8173]
[1729782189127,3.96275,2523.5,2523.3,0.8173]
[1729782189451,3.96261,2523.6,2523.3,0.8173]
[1729782189654,0.7619,2523.9,2523.3,0.8173]
[1729782189655,3.96278,2523.5,2523.3,0.8173]
[1729782189853,3.9627,2523.6,2523.0,4.04272426]
[1729782190016,3.9627,2523.6,2523.1,0.48359243]
[1729782190211,3.96277,2523.5,2523.1,0.56285036]
[1729782190412,3.96283,2523.5,2523.1,0.48359243]
[1729782191456,3.96302,2523.4,2523.1,0.48359243]